fUST/lending_fUST_20250124
["ID","MTS","AMOUNT","RATE_DAILY","PERIOD"]
[350217770,1737699046118,-2702.84,0.00020318,3]
[350217771,1737699046127,-500.0,0.00020318,3]
[350217772,1737699046137,-297.106428,0.00020318,2]
[350217773,1737699046146,-297.106428,0.00020318,2]
[350217774,1737699046156,-151.0,0.00020319,2]
[350217776,1737699046165,-151.0,0.00020319,2]
[350217777,1737699046174,-151.0,0.00020319,2]
[350217778,1737699046183,-500.0,0.00020319,3]
[350217779,1737699046193,-500.0,0.00020319,3]
[350217780,1737699046202,-159.34052081,0.00020346,2]
[350217781,1737699046211,-153.810764,0.0002036,2]
[350217782,1737699046221,-151.0,0.0002036,2]
[350217783,1737699046230,-153.057859,0.0002036,2]
[350217784,1737699046239,-151.0,0.0002036,2]
[350217785,1737699046248,-153.057859,0.0002036,2]
[350217786,1737699046257,-157.978737,0.0002036,2]
[350217787,1737699046267,-157.978737,0.0002036,2]
[350217789,1737699046343,-669.721264,0.0002036,2]
[350217791,1737699046353,-669.721264,0.0002036,2]
[350217794,1737699046362,-151.0,0.000204,4]
[350217795,1737699046371,-500.0,0.0002041,3]
[350217796,1737699046382,-500.0,0.0002041,3]
[350217797,1737699046391,-982.26,0.0002041,3]
[350217799,1737699046400,-302.44,0.0002041,3]
[350217801,1737699046410,-500.0,0.0002041,3]
[350217803,1737699046419,-500.0,0.0002041,2]
[350217805,1737699046428,-699.74,0.0002041,3]
[350217806,1737699046437,-4273.63,0.0002041,3]
[350217807,1737699046446,-500.0,0.0002041,3]
[350217808,1737699046455,-591.63,0.0002041,3]
[350217809,1737699046466,-656.36,0.0002041,3]
[350217810,1737699046476,-1917.03,0.0002041,3]
[350217811,1737699046486,-500.0,0.0002041,3]
[350217812,1737699046495,-5585.12,0.0002041,3]
[350217813,1737699046505,-500.0,0.0002041,3]
[350217814,1737699046515,-500.0,0.0002041,3]
[350217815,1737699046525,-899.59,0.0002041,3]
[350217816,1737699046536,-500.0,0.0002041,3]
[350217817,1737699046545,-590.87815519,0.0002041,3]
[350217818,1737699046555,-735.38,0.0002041,3]
[350217819,1737699046566,-1130.19,0.0002041,3]
[350217820,1737699046575,-515.23345343,0.0002041,3]
[350217821,1737699046585,-500.0,0.0002041,3]
[350217822,1737699046594,-500.0,0.0002041,3]
[350217823,1737699046603,-566.91627651,0.0002041,3]
[350217824,1737699046617,-160.53372349,0.0002041,3]
[350217826,1737699046627,-500.0,0.0002041,3]
[350217828,1737699046636,-500.0,0.0002041,3]
[350217829,1737699046646,-500.0,0.0002041,3]
[350217830,1737699046656,-500.0,0.0002041,3]
[350217831,1737699046666,-3200.75,0.0002041,3]
[350217832,1737699046675,-500.0,0.0002041,3]
[350217833,1737699046684,-500.0,0.0002041,3]
[350217834,1737699046693,-500.0,0.0002041,3]
[350217835,1737699046702,-500.0,0.0002041,3]
[350217836,1737699046712,-752.75,0.0002041,3]
[350217837,1737699046726,-500.0,0.0002041,3]
[350217838,1737699046736,-177.299939,0.00020446,2]
[350217840,1737699046745,-177.299939,0.00020446,2]
[350217841,1737699046754,-500.0,0.00020446,3]
[350217842,1737699046765,-500.0,0.00020446,3]
[350217843,1737699046774,-165.75169,0.00020446,2]
[350217844,1737699046783,-183.838918,0.00020446,2]
[350217845,1737699046791,-183.838918,0.00020446,2]
[350217846,1737699046801,-151.0,0.00020446,2]
[350217847,1737699046810,-151.0,0.00020446,2]
[350217848,1737699046822,-151.0,0.00020446,2]
[350217849,1737699046831,-151.0,0.00020446,2]
[350217850,1737699046841,-376.42896662,0.00020452,2]
[350217851,1737699046850,-2702.84,0.00020455,3]
[350217852,1737699046860,-337.95,0.00020455,3]
[350217853,1737699046868,-500.0,0.00020456,3]
[350217854,1737699046878,-500.0,0.00020456,3]
[350217855,1737699046888,-500.0,0.00020547,3]
[350217856,1737699046897,-500.0,0.00020547,3]
[350217857,1737699046907,-982.26,0.00020547,3]
[350217858,1737699046916,-612.41201804,0.00020547,3]
[350217859,1737699046925,-500.0,0.00020547,2]
[350217860,1737699046936,-699.74,0.00020547,3]
[350217861,1737699046945,-4055.9532707,0.00020547,3]
[350217862,1737699046958,-217.6767293,0.00020547,3]
[350217863,1737699046968,-527.53570467,0.00020547,3]
[350217864,1737699046977,-591.63,0.00020547,3]
[350217865,1737699046986,-656.36,0.00020547,3]
[350217866,1737699046995,-971.22757083,0.00020547,3]
[350217867,1737699047053,-855.37290753,0.00020547,3]
[350217868,1737699047069,-90.42952164,0.00020547,3]
[350217869,1737699047078,-264.97047836,0.00020547,3]
[350217870,1737699047089,-235.02952164,0.00020547,3]
[350217871,1737699047098,-290.52047106,0.00020547,3]
[350217872,1737699328495,962.59757479,0.00024,120]
[350217873,1737699567543,163.302526,0.00013973,2]
[350217875,1737700010127,-203.135549,0.00018148,2]
[350217876,1737700010150,-18.98727138,0.00018343,2]
[350217929,1737700232105,-300.0,0.00018343,2]
[350217931,1737700232115,-22700.0452512,0.00018344,2]
[350217933,1737700232124,-8599.33365109,0.00018754,2]
[350217935,1737700232135,-813.17798231,0.00019166,3]
[350217937,1737700232144,-6457.05,0.00019168,3]
[350217939,1737700232153,-3228.52,0.00019168,3]
[350217941,1737700232162,-1614.26,0.00019168,3]
[350217943,1737700232173,-807.13,0.00019168,3]
[350217945,1737700232182,-403.57,0.00019168,3]
[350217947,1737700232191,-201.78,0.00019168,3]
[350217949,1737700232200,-605.38,0.00019168,3]
[350217951,1737700232210,-500.58254723,0.00019173,2]
[350217953,1737700232219,-521.52585121,0.00019177,2]
[350217955,1737700232228,-500.0,0.00019177,2]
[350217957,1737700232237,-472.50177438,0.00019177,2]
[350217959,1737700232246,-500.0,0.00019177,2]
[350217961,1737700232255,-455.43661597,0.00019177,2]
[350217963,1737700232265,-500.0,0.00019177,2]
[350217965,1737700232274,-500.0,0.00019178,2]
[350217967,1737700232283,-509.86454001,0.00019178,2]
[350217969,1737700232292,-500.0,0.00019178,2]
[350217971,1737700232301,-500.0,0.00019178,2]
[350217973,1737700232310,-502.9755211,0.00019178,2]
[350217975,1737700232319,-417.97403448,0.00019178,2]
[350217977,1737700232328,-508.41685765,0.00019178,2]
[350217979,1737700232338,-460.97266614,0.00019178,2]
[350217981,1737700232347,-400.364005,0.00019178,2]
[350217984,1737700232356,-500.0,0.00019178,2]
[350217987,1737700232365,-502.82934761,0.00019178,2]
[350217990,1737700232374,-469.58961323,0.00019178,2]
[350217993,1737700232384,-500.0,0.00019178,2]
[350217996,1737700232393,-169.17797823,0.00019178,2]
[350217998,1737700232403,-500.0,0.00019178,2]
[350218000,1737700232412,-500.0,0.00019178,2]
[350218002,1737700232421,-500.0,0.00019178,2]
[350218004,1737700232430,-500.0,0.00019178,2]
[350218006,1737700232439,-500.0,0.00019178,2]
[350218008,1737700232448,-500.0,0.00019178,2]
[350218010,1737700232457,-500.0,0.00019178,2]
[350218012,1737700232468,-500.0,0.00019178,2]
[350218014,1737700232477,-500.0,0.00019178,2]
[350218016,1737700232486,-500.0,0.00019178,2]
[350218017,1737700232495,-500.0,0.00019178,2]
[350218018,1737700232505,-500.0,0.00019178,2]
[350218019,1737700232515,-286.16064074,0.00019178,2]
[350218020,1737700232524,-605.24536677,0.00019178,2]
[350218021,1737700232533,-500.0,0.00019178,2]
[350218022,1737700232542,-500.0,0.00019178,2]
[350218023,1737700232551,-502.34533216,0.00019178,2]
[350218024,1737700232560,-500.0,0.00019178,2]
[350218025,1737700232569,-500.0,0.00019178,2]
[350218026,1737700232579,-500.0,0.00019178,2]
[350218027,1737700232588,-236.06340572,0.00019178,2]
[350218028,1737700232597,-500.0,0.00019178,2]
[350218029,1737700232606,-500.0,0.00019178,2]
[350218030,1737700232616,-500.0,0.00019178,2]
[350218031,1737700232625,-500.0,0.00019178,2]
[350218032,1737700232635,-504.36,0.00019178,2]
[350218033,1737700232645,-500.0,0.00019178,2]
[350218034,1737700232657,-500.0,0.00019178,2]
[350218035,1737700232667,-500.0,0.00019178,2]
[350218036,1737700232676,-500.0,0.00019178,2]
[350218038,1737700232685,-500.0,0.00019178,2]
[350218040,1737700232694,-246.93040365,0.00019178,2]
[350218042,1737700232703,-500.0,0.00019178,2]
[350218044,1737700232714,-376.77472556,0.00019178,2]
[350218048,1737700232740,-123.22527444,0.00019178,2]
[350218050,1737700232749,-500.0,0.00019178,2]
[350218052,1737700232758,-532.06,0.00019178,2]
[350218054,1737700232769,-500.0,0.00019178,2]
[350218056,1737700232778,-500.0,0.00019178,2]
[350218058,1737700232787,-500.0,0.00019178,2]
[350218060,1737700232796,-500.0,0.00019178,2]
[350218062,1737700232805,-500.0,0.00019178,2]
[350218064,1737700232817,-500.0,0.00019178,2]
[350218065,1737700232826,-500.0,0.00019178,2]
[350218067,1737700232837,-500.0,0.00019178,2]
[350218068,1737700232846,-500.0,0.00019178,2]
[350218069,1737700232855,-521.14,0.00019178,2]
[350218070,1737700232864,-500.0,0.00019178,2]
[350218071,1737700232873,-57.26587281,0.00019178,2]
[350218072,1737700232886,-254.19359234,0.00019178,2]
[350218073,1737700232895,-152.07750666,0.00019178,2]
[350218116,1737700239595,-262.06963352,0.00019078,2]
[350218117,1737700239606,-347.92249334,0.00019178,2]
[350218118,1737700239616,-125.5115296,0.00019178,2]
[350218133,1737700243017,-374.4884704,0.00019178,2]
[350218134,1737700243027,-500.0,0.00019178,2]
[350218135,1737700243037,-506.43056002,0.00019178,2]
[350218136,1737700243046,-500.0,0.00019178,2]
[350218137,1737700243056,-500.0,0.00019178,2]
[350218138,1737700243066,-500.0,0.00019178,2]
[350218139,1737700243075,-500.0,0.00019178,2]
[350218141,1737700243085,-500.0,0.00019178,2]
[350218143,1737700243095,-500.0,0.00019178,2]
[350218145,1737700243109,-500.0,0.00019178,2]
[350218146,1737700243119,-566.49042879,0.00019178,2]
[350218148,1737700243128,-500.0,0.00019178,2]
[350218149,1737700243138,-500.0,0.00019178,2]
[350218151,1737700243149,-500.0,0.00019178,2]
[350218152,1737700243158,-360.31823518,0.00019178,2]
[350218153,1737700243168,-511.11,0.00019178,2]
[350218154,1737700243178,-500.0,0.00019178,2]
[350218155,1737700243188,-510.29,0.00019178,2]
[350218156,1737700243197,-500.0,0.00019178,2]
[350218157,1737700243207,-500.0,0.00019178,2]
[350218158,1737700243216,-500.0,0.00019178,2]
[350218159,1737700243226,-500.0,0.00019178,2]
[350218160,1737700243236,-500.0,0.00019178,2]
[350218161,1737700243246,-500.0,0.00019178,2]
[350218162,1737700243255,-500.0,0.00019178,2]
[350218163,1737700243265,-500.0,0.00019178,2]
[350218164,1737700243275,-503.02308764,0.00019178,2]
[350218165,1737700243285,-564.89689763,0.00019178,2]
[350218166,1737700243294,-500.0,0.00019178,2]
[350218167,1737700243304,-500.0,0.00019178,2]
[350218168,1737700243313,-500.0,0.00019178,2]
[350218169,1737700243323,-500.0,0.00019178,2]
[350218170,1737700243332,-500.0,0.00019178,2]
[350218171,1737700243342,-500.0,0.00019178,2]
[350218172,1737700243351,-500.0,0.00019178,2]
[350218173,1737700243361,-500.0,0.00019178,2]
[350218174,1737700243370,-500.0,0.00019178,2]
[350218175,1737700243486,-434.41125741,0.00019178,2]
[350218176,1737700243495,-500.0,0.00019178,2]
[350218177,1737700243505,-500.0,0.00019178,2]
[350218178,1737700243514,-500.0,0.00019178,2]
[350218179,1737700243524,-500.0,0.00019178,2]
[350218180,1737700243533,-500.0,0.00019178,2]
[350218181,1737700243542,-500.0,0.00019178,2]
[350218182,1737700243552,-413.56839047,0.00019178,2]
[350218183,1737700243561,-500.0,0.00019178,2]
[350218184,1737700243571,-500.0,0.00019178,2]
[350218185,1737700243580,-500.0,0.00019178,2]
[350218186,1737700243590,-535.66,0.00019178,2]
[350218187,1737700243599,-500.0,0.00019178,2]
[350218188,1737700243608,-500.0,0.00019178,2]
[350218189,1737700243618,-500.0,0.00019178,2]
[350218190,1737700243627,-500.0,0.00019178,2]
[350218191,1737700243636,-500.0,0.00019178,2]
[350218192,1737700243646,-500.0,0.00019178,2]
[350218193,1737700243655,-595.11,0.00019178,2]
[350218194,1737700243664,-500.0,0.00019178,2]
[350218195,1737700243674,-500.0,0.00019178,2]
[350218196,1737700243683,-500.0,0.00019178,2]
[350218197,1737700243692,-500.0,0.00019178,2]
[350218198,1737700243701,-500.0,0.00019178,2]
[350218199,1737700243711,-500.0,0.00019178,2]
[350218200,1737700243720,-544.58,0.00019178,2]
[350218201,1737700243729,-500.0,0.00019178,2]
[350218202,1737700243739,-500.0,0.00019178,2]
[350218203,1737700243748,-500.0,0.00019178,2]
[350218204,1737700243758,-500.0,0.00019178,2]
[350218205,1737700243767,-500.0,0.00019178,2]
[350218206,1737700243776,-500.0,0.00019178,2]
[350218207,1737700243786,-500.0,0.00019178,2]
[350218208,1737700243795,-2785.96,0.00019178,2]
[350218209,1737700243804,-500.0,0.00019178,2]
[350218210,1737700243813,-500.0,0.00019178,2]
[350218211,1737700243823,-500.0,0.00019178,2]
[350218212,1737700243832,-500.0,0.00019178,2]
[350218213,1737700243843,-546.44,0.00019178,2]
[350218214,1737700243853,-500.0,0.00019178,2]
[350218215,1737700243863,-500.0,0.00019178,2]
[350218216,1737700243873,-500.0,0.00019178,2]
[350218217,1737700243882,-536.72,0.00019178,2]
[350218218,1737700243893,-1821.44,0.00019178,2]
[350218219,1737700243903,-1821.44,0.00019178,2]
[350218220,1737700243912,-1821.44,0.00019178,2]
[350218221,1737700243922,-1821.44,0.00019178,2]
[350218222,1737700243931,-1821.44,0.00019178,2]
[350218223,1737700243941,-624.08,0.00019178,2]
[350218224,1737700243950,-1821.44,0.00019178,2]
[350218225,1737700243959,-1821.44,0.00019178,2]
[350218226,1737700243968,-1821.44,0.00019178,2]
[350218227,1737700243977,-1821.44,0.00019178,2]
[350218228,1737700243986,-500.0,0.00019178,2]
[350218229,1737700243996,-500.0,0.00019178,2]
[350218230,1737700244005,-500.0,0.00019178,2]
[350218231,1737700244015,-500.0,0.00019178,2]
[350218232,1737700244025,-524.82,0.00019178,2]
[350218233,1737700244034,-522.22,0.00019178,2]
[350218234,1737700244043,-500.0,0.00019178,2]
[350218235,1737700244053,-500.0,0.00019178,2]
[350218236,1737700244062,-500.0,0.00019178,2]
[350218237,1737700244072,-500.0,0.00019178,2]
[350218238,1737700244082,-500.0,0.00019178,2]
[350218239,1737700244091,-500.0,0.00019178,2]
[350218240,1737700244103,-500.0,0.00019178,2]
[350218241,1737700244113,-560.98,0.00019178,2]
[350218242,1737700244122,-500.0,0.00019178,2]
[350218243,1737700244131,-500.0,0.00019178,2]
[350218244,1737700244143,-500.0,0.00019178,2]
[350218245,1737700244152,-500.0,0.00019178,2]
[350218246,1737700244161,-500.0,0.00019178,2]
[350218247,1737700244170,-500.0,0.00019178,2]
[350218248,1737700244182,-500.0,0.00019178,2]
[350218249,1737700244192,-500.0,0.00019178,2]
[350218250,1737700244201,-500.0,0.00019178,2]
[350218251,1737700244211,-500.0,0.00019178,2]
[350218252,1737700244220,-626.6,0.00019178,2]
[350218253,1737700244229,-4628.0,0.00019178,2]
[350218254,1737700244238,-500.0,0.00019178,2]
[350218255,1737700244248,-1300.89,0.00019178,2]
[350218256,1737700244258,-500.0,0.00019178,2]
[350218257,1737700244268,-500.0,0.00019178,2]
[350218258,1737700244278,-500.0,0.00019178,2]
[350218259,1737700244287,-500.0,0.00019178,2]
[350218260,1737700244296,-500.0,0.00019178,2]
[350218261,1737700244306,-500.0,0.00019178,2]
[350218262,1737700244315,-500.0,0.00019178,2]
[350218263,1737700244324,-500.0,0.00019178,2]
[350218264,1737700244333,-500.0,0.00019178,2]
[350218265,1737700244342,-517.34501381,0.00019178,2]
[350218266,1737700244351,-510.00186148,0.00019178,2]
[350218267,1737700244361,-500.0,0.00019178,2]
[350218268,1737700244370,-604.38711602,0.00019178,2]
[350218269,1737700244379,-500.0,0.00019178,2]
[350218270,1737700244388,-500.0,0.00019178,2]
[350218271,1737700244397,-500.0,0.00019178,2]
[350218272,1737700244406,-12229.5232045,0.00019178,2]
[350218273,1737700244416,-500.0,0.00019178,2]
[350218274,1737700244425,-500.0,0.00019178,2]
[350218275,1737700244435,-500.0,0.00019178,2]
[350218276,1737700244444,-500.0,0.00019178,2]
[350218277,1737700244453,-405.66816788,0.00019178,2]
[350218278,1737700244468,-95.31967191,0.00019178,2]
[350218279,1737700244478,-511.54,0.00019178,2]
[350218280,1737700244488,-51.14033789,0.00019178,2]
[350218288,1737700288502,1000.0,0.00024,120]
[350218289,1737700313353,1000.0,0.0002,20]
[350218291,1737700584340,163.302526,0.00013973,2]
[350218347,1737701432372,-238.642933,0.00017773,2]
[350218349,1737701432384,-158.05357,0.00017808,2]
[350218352,1737701432396,-222.1228203,0.00017811,2]
[350218354,1737701432408,-369.7398008,0.00017969,2]
[350218356,1737701432419,-462.4864828,0.00017969,2]
[350218358,1737701432430,-392.00941109,0.000189,2]
[350218360,1737701432442,-209.52121218,0.00018978,2]
[350218363,1737701432454,-2253.4614106,0.00018999,2]
[350218365,1737701432466,-300.0,0.00018999,2]
[350218367,1737701432479,-39096.77231334,0.00019,2]
[350218369,1737701432491,-6774.86178674,0.00019,2]
[350218386,1737701432650,-30876.9083076,0.00019,2]
[350218388,1737701432664,-2258.58795953,0.000191,3]
[350218390,1737701432673,-646.4397628,0.000191,2]
[350218392,1737701432682,-354.0163353,0.000191,2]
[350218394,1737701432691,-159.34,0.000191,2]
[350218396,1737701432701,-354.0163353,0.000191,2]
[350218398,1737701432710,-354.0163353,0.00019123,2]
[350218400,1737701432719,-1636.46,0.00019167,3]
[350218402,1737701432728,-818.23,0.00019167,3]
[350218404,1737701432737,-409.11,0.00019167,3]
[350218406,1737701432747,-204.56,0.00019167,3]
[350218408,1737701432756,-613.68,0.00019167,3]
[350218410,1737701432765,-748.09,0.00019168,3]
[350218412,1737701432775,-3272.91,0.00019168,3]
[350218414,1737701432784,-500.0,0.00019173,2]
[350218416,1737701432798,-395.31853617,0.00019173,2]
[350218419,1737701432808,-268.3821415,0.00019173,2]
[350218421,1737701432818,-257.87985204,0.00019173,2]
[350218423,1737701432827,-151.31710184,0.00019173,2]
[350218424,1737701432836,-500.0,0.00019173,2]
[350218427,1737701432846,-250.31351025,0.00019173,2]
[350218429,1737701432855,-500.0,0.00019173,2]
[350218430,1737701432865,-500.0,0.00019173,2]
[350218432,1737701432875,-160.34898205,0.00019173,2]
[350218435,1737701432884,-500.0,0.00019173,2]
[350218437,1737701432894,-500.0,0.00019173,2]
[350218439,1737701432903,-152.76232421,0.00019173,2]
[350218441,1737701432913,-500.0,0.00019177,2]
[350218442,1737701432922,-500.0,0.00019177,2]
[350218444,1737701432932,-500.0,0.00019177,2]
[350218446,1737701432941,-443.22813996,0.00019177,2]
[350218448,1737701432950,-167.24960086,0.00019177,2]
[350218450,1737701432959,-562.00408398,0.00019177,2]
[350218452,1737701432968,-553.93168126,0.00019177,2]
[350218454,1737701432977,-499.99999999,0.00019177,2]
[350218456,1737701432986,-273.48259444,0.00019177,2]
[350218458,1737701432995,-500.0,0.00019177,2]
[350218460,1737701433005,-500.0,0.00019177,2]
[350218462,1737701433014,-500.0,0.00019177,2]
[350218464,1737701433023,-632.36105575,0.00019177,2]
[350218466,1737701433033,-64461.06033835,0.00019178,5]
[350218468,1737701433048,-501.20286168,0.00019178,2]
[350218470,1737701433057,-500.440487,0.00019178,2]
[350218472,1737701433068,-500.0,0.00019178,2]
[350218474,1737701433078,-236.83810556,0.00019178,2]
[350218476,1737701433087,-500.0,0.00019178,2]
[350218478,1737701433097,-500.0,0.00019178,2]
[350218480,1737701433107,-500.0,0.00019178,2]
[350218482,1737701433117,-500.0,0.00019178,2]
[350218484,1737701433126,-500.0,0.00019178,2]
[350218486,1737701433136,-500.0,0.00019178,2]
[350218488,1737701433145,-248.27106685,0.00019178,2]
[350218490,1737701433154,-500.0,0.00019178,2]
[350218492,1737701433164,-500.0,0.00019178,2]
[350218494,1737701433173,-500.0,0.00019178,2]
[350218496,1737701433182,-500.0,0.00019178,2]
[350218498,1737701433192,-500.0,0.00019178,2]
[350218500,1737701433202,-500.0,0.00019178,2]
[350218502,1737701433214,-500.0,0.00019178,2]
[350218504,1737701433224,-500.0,0.00019178,2]
[350218506,1737701433234,-500.0,0.00019178,2]
[350218508,1737701433244,-500.0,0.00019178,2]
[350218510,1737701433253,-500.0,0.00019178,2]
[350218512,1737701433263,-500.0,0.00019178,2]
[350218514,1737701433273,-500.0,0.00019178,2]
[350218516,1737701433282,-500.0,0.00019178,2]
[350218518,1737701433295,-500.0,0.00019178,2]
[350218520,1737701433304,-308.99648245,0.00019178,2]
[350218522,1737701433314,-500.0,0.00019178,2]
[350218524,1737701433323,-500.0,0.00019178,2]
[350218526,1737701433333,-500.0,0.00019178,2]
[350218528,1737701433343,-500.0,0.00019178,2]
[350218530,1737701433353,-500.0,0.00019178,2]
[350218532,1737701433362,-500.0,0.00019178,2]
[350218534,1737701433372,-200.0,0.00019178,2]
[350218536,1737701433381,-500.0,0.00019178,2]
[350218538,1737701433391,-500.0,0.00019178,2]
[350218540,1737701433400,-500.0,0.00019178,2]
[350218542,1737701433410,-151.0,0.00019178,2]
[350218544,1737701433420,-500.0,0.00019178,2]
[350218546,1737701433429,-500.0,0.00019178,2]
[350218548,1737701433439,-500.0,0.00019178,2]
[350218550,1737701433448,-500.0,0.00019178,2]
[350218552,1737701433457,-566.4,0.00019178,2]
[350218554,1737701433469,-500.0,0.00019178,2]
[350218556,1737701433479,-500.0,0.00019178,2]
[350218558,1737701433488,-500.0,0.00019178,2]
[350218560,1737701433498,-500.0,0.00019178,2]
[350218562,1737701433508,-500.0,0.00019178,2]
[350218564,1737701433517,-500.0,0.00019178,2]
[350218566,1737701433526,-151.0,0.00019178,2]
[350218568,1737701433536,-500.0,0.00019178,2]
[350218570,1737701433548,-500.0,0.00019178,2]
[350218572,1737701433557,-500.0,0.00019178,2]
[350218574,1737701433566,-500.0,0.00019178,2]
[350218576,1737701433576,-696.83,0.00019178,2]
[350218578,1737701433585,-151.0,0.00019178,2]
[350218580,1737701433596,-500.0,0.00019178,2]
[350218582,1737701433605,-500.0,0.00019178,2]
[350218584,1737701433614,-500.0,0.00019178,2]
[350218586,1737701433623,-500.0,0.00019178,2]
[350218588,1737701433632,-151.0,0.00019178,2]
[350218590,1737701433642,-500.0,0.00019178,2]
[350218592,1737701433651,-500.0,0.00019178,2]
[350218594,1737701433661,-527.47605749,0.00019178,2]
[350218596,1737701433671,-500.0,0.00019178,2]
[350218598,1737701433680,-500.0,0.00019178,2]
[350218600,1737701433689,-500.0,0.00019178,2]
[350218602,1737701433698,-500.0,0.00019178,2]
[350218603,1737701433708,-500.0,0.00019178,2]
[350218606,1737701433718,-151.0,0.00019178,2]
[350218608,1737701433728,-500.0,0.00019178,2]
[350218610,1737701433738,-176.82274771,0.00019178,2]
[350218612,1737701433747,-173.04126,0.00019178,2]
[350218614,1737701433757,-500.0,0.00019178,2]
[350218616,1737701433766,-500.0,0.00019178,2]
[350218618,1737701433775,-500.0,0.00019178,2]
[350218620,1737701433785,-500.0,0.00019178,2]
[350218622,1737701433796,-521.60564116,0.00019178,2]
[350218623,1737701433805,-500.0,0.00019178,2]
[350218626,1737701433815,-151.0,0.00019178,2]
[350218628,1737701433825,-500.0,0.00019178,2]
[350218630,1737701433834,-500.0,0.00019178,2]
[350218632,1737701433844,-500.0,0.00019178,2]
[350218634,1737701433854,-500.0,0.00019178,2]
[350218635,1737701433863,-500.0,0.00019178,2]
[350218637,1737701433873,-500.0,0.00019178,2]
[350218639,1737701433882,-524.97101748,0.00019178,2]
[350218641,1737701433892,-512.90886928,0.00019178,2]
[350218644,1737701433902,-500.0,0.00019178,2]
[350218645,1737701433911,-500.0,0.00019178,2]
[350218647,1737701433921,-500.0,0.00019178,2]
[350218649,1737701433930,-502.08949193,0.00019178,2]
[350218652,1737701433939,-506.58182643,0.00019178,2]
[350218653,1737701433949,-500.0,0.00019178,2]
[350218655,1737701433958,-502.10336619,0.00019178,2]
[350218658,1737701433968,-500.0,0.00019178,2]
[350218660,1737701433977,-500.0,0.00019178,2]
[350218662,1737701433986,-500.0,0.00019178,2]
[350218663,1737701433996,-500.0,0.00019178,2]
[350218665,1737701434005,-500.0,0.00019178,2]
[350218667,1737701434014,-500.0,0.00019178,2]
[350218669,1737701434024,-500.0,0.00019178,2]
[350218671,1737701434034,-500.0,0.00019178,2]
[350218674,1737701434045,-500.0,0.00019178,2]
[350218676,1737701434056,-500.0,0.00019178,2]
[350218678,1737701434066,-500.0,0.00019178,2]
[350218680,1737701434075,-500.0,0.00019178,2]
[350218682,1737701434085,-507.33086002,0.00019178,2]
[350218683,1737701434095,-151.0,0.00019178,2]
[350218686,1737701434105,-500.0,0.00019178,2]
[350218687,1737701434114,-321.26557813,0.00019178,2]
[350218689,1737701434123,-500.0,0.00019178,2]
[350218691,1737701434133,-188.37135637,0.00019178,2]
[350218694,1737701434143,-500.0,0.00019178,2]
[350218696,1737701434152,-500.0,0.00019178,2]
[350218698,1737701434162,-364.75040147,0.00019178,2]
[350218700,1737701434172,-500.0,0.00019178,2]
[350218702,1737701434181,-500.0,0.00019178,2]
[350218703,1737701434190,-500.0,0.00019178,2]
[350218705,1737701434199,-500.0,0.00019178,2]
[350218707,1737701434209,-500.0,0.00019178,2]
[350218709,1737701434218,-175.659344,0.00019178,2]